Workbook

Sheet Лист 1
A1: Это расчетом делается | B1: Это вручную было сделано | C1: Координаты | D1: Latitude | E1: Longitude | F1: Distance | G1: РАНГ | H1: Что искать | I1: Поискпоз | J1: x2 | K1: y2 | L1: Расстояние | M1: РАНГ | N1: Что искать | O1: Поискпоз | P1: x3 | Q1: y3 | R1: Расстояние | S1: РАНГ | T1: Что искать | U1: Поискпоз | V1: x4 | W1: y4 | X1: Расстояние | Y1: РАНГ | Z1: Что искать | AA1: Поискпоз | AB1: x5 | AC1: y5 | AD1: Расстояние | AE1: РАНГ | AF1: Что искать | AG1: Поискпоз | AH1: x6 | AI1: y6 | AJ1: Расстояние | AK1: РАНГ | AL1: Что искать | AM1: Поискпоз | AN1: x7 | AO1: y7 | AP1: Расстояние | AQ1: РАНГ | AR1: Что искать | AS1: Поискпоз | AT1: x8 | AU1: y8 | AV1: Расстояние | AW1: РАНГ | AX1: Что искать | AY1: Поискпоз | AZ1: x9 | BA1: y9 | BB1: Расстояние
B2: 1 | C2: 59.985255, 30.341011 | D2: =--SUBSTITUTE(LEFTB(C2,9),".",",") -> 59.985255 | E2: =--SUBSTITUTE(RIGHTB(C2,9),".",",") -> 30.341011 | F2: =ROUND(ACOS(SIN(D$2*PI()/180)*SIN(D2*PI()/180)+COS(D$2*PI()/180)*COS(D2*PI()/180)*COS((E$2-E2)*PI()/180))*6371.21,3)+0.000001*ROW() -> 2e-06 | G2: =RANK(F2,F$2:F$10,1) -> 1 | H2: 2 | I2: =MATCH(H2,G$2:G$10,) -> 2 | J2: =INDEX(D$2:D$10,I2) -> 59.979794 | K2: =INDEX(E$2:E$10,I2) -> 30.336253 | L2: =ROUND(ACOS(SIN(J$2*PI()/180)*SIN(J2*PI()/180)+COS(J$2*PI()/180)*COS(J2*PI()/180)*COS((K$2-K2)*PI()/180))*6371.21,3)+0.000001*ROW() -> 2e-06 | M2: =RANK(L2,L$2:L$10,1) -> 1 | N2: 2 | O2: =MATCH(N2,M$2:M$10,) -> 2 | P2: =INDEX(J$2:J$10,O2) -> 59.979675 | Q2: =INDEX(K$2:K$10,O2) -> 30.357741 | R2: =ROUND(ACOS(SIN(P$2*PI()/180)*SIN(P2*PI()/180)+COS(P$2*PI()/180)*COS(P2*PI()/180)*COS((Q$2-Q2)*PI()/180))*6371.21,3)+0.000001*ROW() -> 2e-06 | S2: =RANK(R2,R$2:R$10,1) -> 1 | T2: 2 | U2: =MATCH(T2,S$2:S$10,) -> 2 | V2: =INDEX(P$2:P$10,U2) -> 59.971523 | W2: =INDEX(Q$2:Q$10,U2) -> 30.319663 | X2: =ROUND(ACOS(SIN(V$2*PI()/180)*SIN(V2*PI()/180)+COS(V$2*PI()/180)*COS(V2*PI()/180)*COS((W$2-W2)*PI()/180))*6371.21,3)+0.000001*ROW() -> 2e-06 | Y2: =RANK(X2,X$2:X$10,1) -> 1 | Z2: 2 | AA2: =MATCH(Z2,Y$2:Y$10,) -> 3 | AB2: =INDEX(V$2:V$10,AA2) -> 59.962679 | AC2: =INDEX(W$2:W$10,AA2) -> 30.311135 | AD2: =ROUND(ACOS(SIN(AB$2*PI()/180)*SIN(AB2*PI()/180)+COS(AB$2*PI()/180)*COS(AB2*PI()/180)*COS((AC$2-AC2)*PI()/180))*6371.21,3)+0.000001*ROW() -> 2e-06 | AE2: =RANK(AD2,AD$2:AD$10,1) -> 1 | AF2: 2 | AG2: =MATCH(AF2,AE$2:AE$10,) -> 3 | AH2: =INDEX(AB$2:AB$10,AG2) -> 59.950246 | AI2: =INDEX(AC$2:AC$10,AG2) -> 30.303009 | AJ2: =ROUND(ACOS(SIN(AH$2*PI()/180)*SIN(AH2*PI()/180)+COS(AH$2*PI()/180)*COS(AH2*PI()/180)*COS((AI$2-AI2)*PI()/180))*6371.21,3)+0.000001*ROW() -> 2e-06 | AK2: =RANK(AJ2,AJ$2:AJ$10,1) -> 1 | AL2: 2 | AM2: =MATCH(AL2,AK$2:AK$10,) -> 2 | AN2: =INDEX(AH$2:AH$10,AM2) -> 59.957248 | AO2: =INDEX(AI$2:AI$10,AM2) -> 30.337662 | AP2: =ROUND(ACOS(SIN(AN$2*PI()/180)*SIN(AN2*PI()/180)+COS(AN$2*PI()/180)*COS(AN2*PI()/180)*COS((AO$2-AO2)*PI()/180))*6371.21,3)+0.000001*ROW() -> 2e-06 | AQ2: =RANK(AP2,AP$2:AP$10,1) -> 1 | AR2: 2 | AS2: =MATCH(AR2,AQ$2:AQ$10,) -> 2 | AT2: =INDEX(AN$2:AN$10,AS2) -> 60.033983 | AU2: =INDEX(AO$2:AO$10,AS2) -> 30.330392 | AV2: =ROUND(ACOS(SIN(AT$2*PI()/180)*SIN(AT2*PI()/180)+COS(AT$2*PI()/180)*COS(AT2*PI()/180)*COS((AU$2-AU2)*PI()/180))*6371.21,3)+0.000001*ROW() -> 2e-06 | AW2: =RANK(AV2,AV$2:AV$10,1) -> 1 | AX2: 2 | AY2: =MATCH(AX2,AW$2:AW$10,) -> 2 | AZ2: =INDEX(AT$2:AT$10,AY2) -> 59.844205 | BA2: =INDEX(AU$2:AU$10,AY2) -> 30.344273 | BB2: =ROUND(ACOS(SIN(AZ$2*PI()/180)*SIN(AZ2*PI()/180)+COS(AZ$2*PI()/180)*COS(AZ2*PI()/180)*COS((BA$2-BA2)*PI()/180))*6371.21,3)+0.000001*ROW() -> 2e-06
B3: 2 | C3: 59.979794, 30.336253 | D3: =--SUBSTITUTE(LEFTB(C3,9),".",",") -> 59.979794 | E3: =--SUBSTITUTE(RIGHTB(C3,9),".",",") -> 30.336253 | F3: =ROUND(ACOS(SIN(D$2*PI()/180)*SIN(D3*PI()/180)+COS(D$2*PI()/180)*COS(D3*PI()/180)*COS((E$2-E3)*PI()/180))*6371.21,3)+0.000001*ROW() -> 0.662003 | G3: =RANK(F3,F$2:F$10,1) -> 2 | H3: 3 | I3: =MATCH(H3,G$2:G$10,) -> 5 | J3: =INDEX(D$2:D$10,I3) -> 59.979675 | K3: =INDEX(E$2:E$10,I3) -> 30.357741 | L3: =ROUND(ACOS(SIN(J$2*PI()/180)*SIN(J3*PI()/180)+COS(J$2*PI()/180)*COS(J3*PI()/180)*COS((K$2-K3)*PI()/180))*6371.21,3)+0.000001*ROW() -> 1.196003 | M3: =RANK(L3,L$2:L$10,1) -> 2 | N3: 3 | O3: =MATCH(N3,M$2:M$10,) -> 3 | P3: =INDEX(J$2:J$10,O3) -> 59.971523 | Q3: =INDEX(K$2:K$10,O3) -> 30.319663 | R3: =ROUND(ACOS(SIN(P$2*PI()/180)*SIN(P3*PI()/180)+COS(P$2*PI()/180)*COS(P3*PI()/180)*COS((Q$2-Q3)*PI()/180))*6371.21,3)+0.000001*ROW() -> 2.304003 | S3: =RANK(R3,R$2:R$10,1) -> 2 | T3: 3 | U3: =MATCH(T3,S$2:S$10,) -> 4 | V3: =INDEX(P$2:P$10,U3) -> 59.957248 | W3: =INDEX(Q$2:Q$10,U3) -> 30.337662 | X3: =ROUND(ACOS(SIN(V$2*PI()/180)*SIN(V3*PI()/180)+COS(V$2*PI()/180)*COS(V3*PI()/180)*COS((W$2-W3)*PI()/180))*6371.21,3)+0.000001*ROW() -> 1.877003 | Y3: =RANK(X3,X$2:X$10,1) -> 3 | Z3: 3 | AA3: =MATCH(Z3,Y$2:Y$10,) -> 2 | AB3: =INDEX(V$2:V$10,AA3) -> 59.957248 | AC3: =INDEX(W$2:W$10,AA3) -> 30.337662 | AD3: =ROUND(ACOS(SIN(AB$2*PI()/180)*SIN(AB3*PI()/180)+COS(AB$2*PI()/180)*COS(AB3*PI()/180)*COS((AC$2-AC3)*PI()/180))*6371.21,3)+0.000001*ROW() -> 1.595003 | AE3: =RANK(AD3,AD$2:AD$10,1) -> 3 | AF3: 3 | AG3: =MATCH(AF3,AE$2:AE$10,) -> 2 | AH3: =INDEX(AB$2:AB$10,AG3) -> 59.957248 | AI3: =INDEX(AC$2:AC$10,AG3) -> 30.337662 | AJ3: =ROUND(ACOS(SIN(AH$2*PI()/180)*SIN(AH3*PI()/180)+COS(AH$2*PI()/180)*COS(AH3*PI()/180)*COS((AI$2-AI3)*PI()/180))*6371.21,3)+0.000001*ROW() -> 2.081003 | AK3: =RANK(AJ3,AJ$2:AJ$10,1) -> 2 | AL3: 3 | AM3: =MATCH(AL3,AK$2:AK$10,) -> 3 | AN3: =INDEX(AH$2:AH$10,AM3) -> 60.033983 | AO3: =INDEX(AI$2:AI$10,AM3) -> 30.330392 | AP3: =ROUND(ACOS(SIN(AN$2*PI()/180)*SIN(AN3*PI()/180)+COS(AN$2*PI()/180)*COS(AN3*PI()/180)*COS((AO$2-AO3)*PI()/180))*6371.21,3)+0.000001*ROW() -> 8.542003 | AQ3: =RANK(AP3,AP$2:AP$10,1) -> 2 | AR3: 3 | AS3: =MATCH(AR3,AQ$2:AQ$10,) -> 3 | AT3: =INDEX(AN$2:AN$10,AS3) -> 59.844205 | AU3: =INDEX(AO$2:AO$10,AS3) -> 30.344273 | AV3: =ROUND(ACOS(SIN(AT$2*PI()/180)*SIN(AT3*PI()/180)+COS(AT$2*PI()/180)*COS(AT3*PI()/180)*COS((AU$2-AU3)*PI()/180))*6371.21,3)+0.000001*ROW() -> 21.117003 | AW3: =RANK(AV3,AV$2:AV$10,1) -> 2
B4: 8 | C4: 60.033983, 30.330392 | D4: 60.033983 | E4: 30.330392 | F4: 5.451004 | G4: 8 | H4: 4 | I4: 8 | J4: 59.971523 | K4: 30.319663 | L4: 1.303004 | M4: 3 | N4: 4 | O4: 4 | P4: 59.962679 | Q4: 30.311135 | R4: 3.209004 | S4: 4 | T4: 4 | U4: 3 | V4: 59.962679 | W4: 30.311135 | X4: 1.092004 | Y4: 2 | Z4: 4 | AA4: 4 | AB4: 59.950246 | AC4: 30.303009 | AD4: 1.455004 | AE4: 2 | AF4: 4 | AG4: 4 | AH4: 60.033983 | AI4: 30.330392 | AJ4: 9.435004 | AK4: 3 | AL4: 4 | AM4: 4 | AN4: 59.844205 | AO4: 30.344273 | AP4: 12.576004 | AQ4: 3
B5: 7 | C5: 59.957248, 30.337662 | D5: 59.957248 | E5: 30.337662 | F5: 3.120005 | G5: 6 | H5: 5 | I5: 6 | J5: 59.962679 | K5: 30.311135 | L5: 2.361005 | M5: 4 | N5: 5 | O5: 5 | P5: 59.957248 | Q5: 30.337662 | R5: 2.733005 | S5: 3 | T5: 5 | U5: 5 | V5: 59.950246 | W5: 30.303009 | X5: 2.541005 | Y5: 4 | Z5: 5 | AA5: 5 | AB5: 60.033983 | AC5: 30.330392 | AD5: 8.001005 | AE5: 4 | AF5: 5 | AG5: 5 | AH5: 59.844205 | AI5: 30.344273 | AJ5: 12.014005 | AK5: 4
B6: 3 | C6: 59.979675, 30.357741 | D6: 59.979675 | E6: 30.357741 | F6: 1.119006 | G6: 3 | H6: 6 | I6: 4 | J6: 59.957248 | K6: 30.337662 | L6: 2.508006 | M6: 5 | N6: 6 | O6: 6 | P6: 59.950246 | Q6: 30.303009 | R6: 4.471006 | S6: 5 | T6: 6 | U6: 6 | V6: 60.033983 | W6: 30.330392 | X6: 6.971006 | Y6: 5 | Z6: 6 | AA6: 6 | AB6: 59.844205 | AC6: 30.344273 | AD6: 13.303006 | AE6: 5
B7: 5 | C7: 59.962679, 30.311135 | D7: 59.962679 | E7: 30.311135 | F7: 3.011007 | G7: 5 | H7: 7 | I7: 9 | J7: 59.950246 | K7: 30.303009 | L7: 3.771007 | M7: 6 | N7: 7 | O7: 7 | P7: 60.033983 | Q7: 30.330392 | R7: 6.227007 | S7: 6 | T7: 7 | U7: 7 | V7: 59.844205 | W7: 30.344273 | X7: 14.224007 | Y7: 6
B8: 9 | C8: 59.844205, 30.344273 | D8: 59.844205 | E8: 30.344273 | F8: 15.686008 | G8: 9 | H8: 8 | I8: 3 | J8: 60.033983 | K8: 30.330392 | L8: 6.035008 | M8: 7 | N8: 8 | O8: 8 | P8: 59.844205 | Q8: 30.344273 | R8: 15.083008 | S8: 7
B9: 4 | C9: 59.971523, 30.319663 | D9: 59.971523 | E9: 30.319663 | F9: 1.935009 | G9: 4 | H9: 9 | I9: 7 | J9: 59.844205 | K9: 30.344273 | L9: 15.084009 | M9: 8
B10: 6 | C10: 59.950246, 30.303009 | D10: 59.950246 | E10: 30.303009 | F10: 4.43001 | G10: 7

Sheet Лист2

Sheet Лист3
